Cogmind - Beta 11.1 --- EXPLORER MODE // 2022.08.25 @ 20:19:22 Player: H_ Result: Destroyed by G-34 Mercenary with Small Laser Performance ------------- Evolutions (0) 0 Regions Visited (1) 200 Robots Destroyed (4) 20 Value Destroyed (16) 16 Prototype IDs (0) 0 Alien Tech Used (0) 0 Bonus (0) 0 TOTAL SCORE: 236 Bonus ------- None Cogmind --------- Core Integrity 0/250 Matter 300/300 Energy 100/100 System Corruption 0% Temperature Cool (6) Movement Core (50) Location -10/Materials Parts ------- > --- POWER (1) -------- (None) > --- PROPULSION (2) --- (None) > --- UTILITY (3) ------ Targeting Computer > --- WEAPON (2) ------- (None) > --- INVENTORY (5) ---- Ion Engine Light Ion Engine Medium Storage Unit Improved Terrain Scanner Light Assault Rifle Peak State ------------ > --- POWER ------------ (None) > --- PROPULSION ------- (None) > --- UTILITY ---------- Targeting Computer > --- WEAPON ----------- Small Laser Small Laser > --- INVENTORY -------- Ion Engine Medium Storage Unit Light Assault Rifle [Rating: 3] Favorites ----------- Power None Propulsion None Utility Targeting Computer Processor Targeting Computer Weapon Small Laser Energy Gun Small Laser Build | -11 -10 ------- Run | Scr Mat Slots Evolved 1 | . 1 Power . | . . Propulsion . | . . Utility 1 | . 1 Weapon . | . . Parts Attached 3 | 3 . Power . | . . Engine . | . . Core . | . . Reactor . | . . Propulsion . | . . Treads . | . . Leg . | . . Wheel . | . . Hover . | . . Flight . | . . Utility 1 | 1 . Device . | . . Storage . | . . Processor 1 | 1 . Hackware . | . . Protection . | . . Artifact . | . . Weapon 2 | 2 . Energy Gun 2 | 2 . Energy Cannon . | . . Ballistic Gun . | . . Ballistic Cannon . | . . Launcher . | . . Special Weapon . | . . Impact Weapon . | . . Slashing Weapon . | . . Piercing Weapon . | . . Special Melee Weapon . | . . Unidentified Prototypes . | . . Parts Lost 2 | . 2 Power . | . . Propulsion . | . . Utility . | . . Weapon 2 | . 2 Highest Loss Streak 2 | . 2 To Critical Strikes . | . . Average Slot Usage (%) 34 | . 34 Processor 12 | . 12 Energy Gun 22 | . 22 Naked Turns . | . . Heaviest Build 2 | 2 2 Greatest Support 3 | 3 3 Greatest Overweight (x) . | . . Average Overweight (x) . | . . Largest Inventory Capacity 5 | 5 5 Average Capacity 5 | 5 5 Most Carried 5 | 5 5 Average Carried 4 | 3 5 Final Capacity 5 | 5 5 Final Carried 5 | 5 5 Class Distribution -------------------- 100% | Hacker-Mutant Dominant Class ---------------- Hacker-Mutant | -10/Materials Resources | -11 -10 ----------- Run | Scr Mat Matter Collected 230 | 230 . Remotely . | . . Salvage Created 182 | 107 75 Parts 9 | 3 6 Haulers Intercepted 1 | . 1 Recyclers Shooed 2 | 1 1 Parts Field Recycled . | . . Retrieved Matter . | . . Parts Self-Destructed . | . . Prevented . | . . Kills | -11 -10 ------- Run | Scr Mat Combat Hostiles Destroyed . | . . Classes Destroyed 4 | 2 2 Worker 1 | . 1 Tunneler 1 | 1 . Hauler 1 | . 1 Recycler 1 | 1 . Best Kill Streak 2 | 2 1 Combat Bots Only . | . . Max Kills in Single Turn 1 | 1 1 Gunslinging . | . . Exploded . | . . Melee . | . . Uniques/NPCs Destroyed . | . . Combat | -11 -10 -------- Run | Scr Mat Damage Taken 402 | . 402 Core 256 | . 256 Absorbed by Shields . | . . Core Remaining (%) 100 | 100 . Volleys Fired 16 | 3 13 Largest 2 | 2 2 Hottest 80 | 80 80 Shots Fired 32 | 6 26 Gun 32 | 6 26 Cannon . | . . Launcher . | . . Special . | . . Kinetic . | . . Thermal 32 | 6 26 Explosive . | . . Electromagnetic . | . . Robot Hit Streak 17 | 5 17 Robot Miss Streak . | . . Penetration Max . | . . Secondary Targets 1 | . 1 Max Gunslinging Chain 1 | . 1 Shots Hit Robots 17 | 5 12 Core Hits 8 | 3 5 Critical Kills . | . . Critical Parts Destroyed . | . . Critical Strikes . | . . Melee Attacks . | . . Impact . | . . Slashing . | . . Piercing . | . . Sneak Attacks . | . . Combat Hostiles . | . . Follow-up Attacks . | . . Damage Inflicted 189 | 57 132 Guns 189 | 57 132 Cannons . | . . Explosions . | . . Melee . | . . Ramming . | . . Kinetic . | . . Thermal 189 | 57 132 Explosive . | . . Electromagnetic . | . . Impact . | . . Slashing . | . . Piercing . | . . Highest Corruption . | . . Average Corruption . | . . Corruption Purged . | . . Corruption Blocked . | . . Overload Shots . | . . Overflow Damage . | . . Projectiles . | . . Explosions . | . . Melee . | . . Knockbacks . | . . Impact . | . . Kinetic . | . . Secondary . | . . Self-Inflicted Damage . | . . Shots . | . . Rammed . | . . Targets Rammed . | . . Kicked . | . . Crushed . | . . Highest Temperature 34 | 9 34 Average Temperature 9 | 5 10 Received Heat Transfer 303 | . 303 Siege Activations . | . . Robots Corrupted . | . . Combat Hostiles . | . . Parts Fried . | . . Impact Corruptions . | . . Robots Melted . | . . Combat Hostiles . | . . Parts Melted 1 | . 1 Heat Transferred 425 | 125 300 Parts Sabotaged . | . . Parts Stolen . | . . Parts Stripped . | . . Power Chain Reactions . | . . Missiles Intercepted . | . . Alert | -11 -10 ------- Run | Scr Mat Peak Influence 46 | 10 46 Initial 4 | . 4 Average 20 | 6 25 Maximum Alert Level . | . . Low Security (%) 100 | 100 100 Level 1 . | . . Level 2 . | . . Level 3 . | . . Level 4 . | . . Level 5 . | . . High Security . | . . Max Security . | . . Squads Dispatched . | . . Investigation . | . . Extermination . | . . Reinforcement . | . . Assault . | . . Garrison . | . . Intercept . | . . Searches Triggered . | . . Construction Impeded . | . . Haulers Reinforced . | . . Active Scanning Responses . | . . Cargo Convoy Interrupts . | . . Stealth | -11 -10 --------- Run | Scr Mat Distress Signals . | . . Communications Jammed . | . . Distress Signals . | . . Times Spotted 6 | . 6 Peak Tracking Total 5 | . 5 Tactical Retreats . | . . Traps | -11 -10 ------- Run | Scr Mat Traps Triggered 3 | . 3 Indirectly . | . . Trap Hack Attempts . | . . Triggered . | . . Disarmed . | . . Reprogrammed . | . . Reused . | . . Traps Extracted . | . . Installed . | . . Triggered . | . . Machines | -11 -10 ---------- Run | Scr Mat Machines Disabled . | . . Max in Single Turn . | . . Machines Sabotaged . | . . Garrisons Compromised . | . . Overloaded Fab Kills . | . . Hacking | -11 -10 --------- Run | Scr Mat Machines Accessed . | . . Terminals . | . . Fabricators . | . . Repair Stations . | . . Recycling Units . | . . Scanalyzers . | . . Garrison Access . | . . Total Hacks . | . . Successful . | . . Failed . | . . Catastrophic . | . . Database Lockouts . | . . Manual . | . . Terminals . | . . Fabricators . | . . Repair Stations . | . . Recycling Units . | . . Scanalyzers . | . . Garrison Access . | . . Terminal Hacks . | . . Fabricator Hacks . | . . Repair Station Hacks . | . . Recycling Unit Hacks . | . . Scanalyzer . | . . Garrison Access Hacks . | . . Unauthorized Hacks . | . . Terminals . | . . Fabricators . | . . Repair Stations . | . . Recycling Units . | . . Scanalyzers . | . . Garrison Access . | . . Data Cores Recovered . | . . Used . | . . Hacking Detections . | . . Full Trace Events . | . . Feedback Events . | . . Feedback Blocked . | . . Robot Schematics Acquired . | . . Robots Built . | . . Authchips . | . . Time . | . . Total Robot Build Rating . | . . Part Schematics Acquired . | . . Parts Built . | . . Authchips . | . . Time . | . . Total Part Build Rating . | . . Parts Repaired . | . . Time . | . . Parts Recycled . | . . Recycled Matter . | . . Retrieved Matter . | . . Retrieved Components . | . . Parts Scanalyzed . | . . Part Schematics Acquired . | . . Parts Damaged . | . . Bothacking | -11 -10 ------------ Run | Scr Mat Used RIF Installer . | . . Robots Hacked . | . . Non-combat . | . . Combat . | . . Robot Hacks Applied . | . . Relay Couplers Released . | . . Fabnet Peak Effective % . | . . Robots Rewired . | . . Allies Hacked . | . . Hacks Repelled . | . . Allies | -11 -10 -------- Run | Scr Mat Total Allies . | . . Largest Group . | . . Highest-Rated Group . | . . Highest-Rated Ally . | . . Total Orders . | . . Ally Attacks . | . . Total Damage . | . . Kills . | . . Allies Corrupted . | . . Allies Melted . | . . Intel | -11 -10 ------- Run | Scr Mat Robot Analysis Total . | . . Derelict Logs Recovered . | . . Drone Launches . | . . Drone Recoveries . | . . Exploration | -11 -10 ------------- Run | Scr Mat Turns Passed 224 | 64 160 Spaces Moved 184 | 71 113 Core 184 | 71 113 Treads . | . . Legs . | . . Wheels . | . . Hover . | . . Flight . | . . Fastest Speed 50 | 50 50 Average Speed 50 | 50 50 Slowest Speed 50 | 50 50 Overloaded Moves . | . . Propulsion Burnouts . | . . Robots Hopped . | . . Cave-ins Triggered . | . . Exploration Rate (%) 15 | 3 27 Regions Visited 1 Branch Regions . Pre-discovered Areas . | . . Known Exits Taken 1 | 1 . Unknown Exits Taken . | . . Scrap Searched . | . . Spaces Dug . | . . Terrain Destroyed . | . . Melee . | . . Projectile . | . . AOE . | . . Terrain Rammed . | . . Walls Destroyed . | . . Machines Disabled . | . . Actions | -11 -10 --------- Run | Scr Mat Total 282 | 92 190 Wait 72 | 8 64 Move 183 | 70 113 Hop . | . . Pick Up 8 | 8 . Fast Attach . | . . Attach 3 | 3 . Detach . | . . Swap . | . . Drop . | . . Fire 16 | 3 13 Melee . | . . Ram . | . . Kick . | . . Crush . | . . Escape Stasis . | . . Rewire . | . . Trap . | . . Miscellaneous . | . . Route ------- -11/Scrapyard -10/Materials History --------- Turn | Location | Event 10 | -11/Scrapyard | Identified exit to Materials 10 | -11/Scrapyard | Discovered exit to Materials (range 14) 65 | -11/Scrapyard | Entered Materials 65 | -10/Materials | Evolved 1 slot: Utility x1 206 | -10/Materials | Core integrity fell below 50% 218 | -10/Materials | Core integrity fell below 20% 225 | -10/Materials | Destroyed by G-34 Mercenary with Small Laser Last Messages --------------- 00090_ Triggered Explosive Trap. 00090_ An explosion rips through the floor. 00090_ Purification Channel disabled. 00093_ Triggered Explosive Trap. 00093_ An explosion rips through the floor. 00094_ Triggered Explosive Trap. 00094_ An explosion rips through the floor. 00106_ K-01 Serf collects debris. 00124_ K-01 Serf destroyed. 00153_ K-01 Serf collects debris. 00154_ Weight Redist. System melted. 00154_ A-02 Transporter destroyed. 00154_ Switching to secondary target: G-34 Mercenary. 00159_ R-06 Scavenger collects Sml. Matter Pod. 00161_ R-06 Scavenger collects Lgt. Ion Engine. 00165_ R-06 Scavenger collects Wheel. 00209_ Sml. Laser destroyed. 00218_ K-01 Serf collects debris. 00219_ Sml. Laser destroyed. 00223_ K-01 Serf collects debris. Map ----- +----------------------------------------------------+ | ?????????????????????????????????????????????????? | | ?????????????????????????????????????????????????? | | ?????????????????????????????????????????????????? | | ?????????????????????????????????????????????????? | | ?????????????????????????????????????????????????? | | ?????????????????????????????????????????????????? | | ?????????????????????????????????????????????????? | | ?????????????????????????????????????????????????? | | ?????????????????????????????????????????????????? | | ?????????????????????????????????????????????????? | | ?????????????????????????????????????????????????? | | ?????????????????????????????????????????????????? | | ????????? ???????????????????????????????????????? | | ?????????# ??????????????????????????????????????? | | ?????????# ?????????????????????????????????????? | | ?????????# ?????????????????????????????????????? | | ?????????# ???#+#??????????????????????????????? | | ????????## #??# #???????? #????????????????????? | | ????????# ### ##??????? #????????????????????? | | ????????# ? #??????? #????????????????????? | | ????????+ ?? ########+#????????????????????? | | ????????# ?? # #????????????????????? | | ????????? ???# # % """#????????????????????? | | ?????????# ???# # k """#????????????????????? | | ?????????# ??# #^ gg"""#????????????????????? | | ?????????# ??# + g @ #????????????????????? | | ?????????# ### # ! """#????????????????????? | | ?????????# # # """#????????????????????? | | ?????????### !*# # """#????????????????????? | | ???????????# =%=# # ! #????????????????????? | | ???????????# == # ########+#????????????????????? | | ???????????# # #??????# #????????????????????? | | ???????????# #+######## #????????????????????? | | ???????????# # T ## #????????????????????? | | ???????????# # ## #????????????????????? | | ??????????? # ## ############?????????? | | ?????????? # """ # #?????????? | | ????????? # """ # #?????????? | | ????????" # """ + #?????????? | | ???????"" ## #?????????? | | ??????? "T" ## """ #?????????? | | ??????? ## """ " =#?????????? | | ?????? ## """ """ " #?????????? | | ???????## ?? ?# """" " #?????????? | | ????????????? ?######### #?????????? | | ????????????? ?# ?# #?????????? | | ?????????????????# # ###?????????? | | ?????????????????# # #???????????? | | ?????????????????# + ##+######??????? | | ?????????????????# ! # # #??????? | +----------------------------------------------------+ Best States ------------- Heat Dissipation 25 Energy Generation 5 Energy Capacity 100 Matter Stores 300 Matter Capacity 300 Sight Range 16 Terrain Scan Density 10 Resistance: KI 35 Resistance: TH 35 Resistance: EX 35 Resistance: EM 35 Resistance: I 35 Resistance: S 35 Resistance: P 35 Evasion (%) 50 Targeting Accuracy 5 Offensive Hacking 20 Item Schematics ----------------- None Robot Schematics ------------------ None Fabricated ------------ Nothing Alien Tech Used ----------------- None Achievements -------------- None Challenges ------------ None Game ------ Seed MyomerMetafiberBay Manual? 0 Play Time 00:13:00 Cumulative 195.5 hours Start 2022.08.25 @ 20:02:13 End 2022.08.25 @ 20:19:22 Sessions 6 Manual Loads 0 Difficulty Explorer Special Mode None Game No. 42 Rogue 12 Adventurer 0 Explorer 30 Win Type - Total 4 Types 2/0/2/0/0/0/0/0/0 Lore% 70 Gallery% 76 Achievement% 70 Wizard Run 0 Options --------- ASCII 0 Keyboard 0 Movement Mouse Keybinds 0 Fullscreen 2 Font 24/Smallcaps Map View 76x50 Tactical HUD 1 Map Filters NONE Filters NONE Steam 1 RUN: 7958af57-13e7-4a2c-9e45-c4842f935e9a